bitfinex/quotes_ETHUSD_20250129
["timestamp","ask_amount","ask_price","bid_price","bid_amount"]
[1738164706880,3.22478,3101.0,3100.4,4.32655687]
[1738164707375,3.2246,3101.2,3100.5,0.47845999]
[1738164707678,3.22469,3101.1,3100.6,3.22516]
[1738164708042,3.22518,3100.6,3100.5,0.47845999]
[1738164708376,3.22518,3100.6,3100.5,1.10119314]
[1738164708743,3.22518,3100.6,3100.5,0.62273315]
[1738164709086,4.960812,3100.6,3100.5,0.62273315]
[1738164709678,3.22559,3100.2,3100.1,0.23951275]
[1738164710047,3.22559,3100.2,3100.1,0.71957191]
[1738164710888,3.99649,3100.2,3100.1,0.71957191]
[1738164711219,3.99649,3100.2,3100.1,1.19991429]
[1738164711367,4.718688,3100.2,3100.1,0.96040154]
[1738164711733,4.718688,3100.2,3100.1,0.48034238]
[1738164712749,3.22625,3099.6,3099.2,1.10506724]
[1738164713310,3.22604,3099.8,3099.2,1.10506724]
[1738164713605,3.22584,3100.0,3099.4,3.2264]
[1738164713754,3.98905,3100.2,3099.4,3.2264]
[1738164713948,3.2258,3100.0,3099.6,0.759]
[1738164714154,3.22625,3099.6,3099.3,1.47772117]
[1738164714391,3.22601,3099.8,3099.3,36.47772117]
[1738164714637,6.45212,3099.8,3099.3,1.47772117]
[1738164714792,3.22601,3099.8,3099.3,1.47772117]
[1738164714991,3.22623,3099.6,3099.3,36.47772117]
[1738164715193,3.22623,3099.6,3099.3,1.23744238]
[1738164715423,6.45211,3099.8,3099.3,1.23744238]
[1738164715725,3.22643,3099.4,3099.3,0.48034238]
[1738164715922,6.45258,3099.6,3099.2,0.48034238]
[1738164716093,0.7090158,3099.8,3099.2,0.48034238]
[1738164716094,3.22649,3099.4,3099.2,0.48034238]
[1738164717299,3.22627,3099.6,3099.0,3.22684]
[1738164717501,3.22644,3099.4,3098.7,6.92786]
[1738164717804,3.22644,3099.4,3098.8,3.22698]
[1738164718214,3.22644,3099.4,3098.9,3.22691]
[1738164718731,3.22627,3099.6,3099.1,3.22672]
[1738164718893,0.7090158,3099.8,3099.2,0.7988]
[1738164719096,3.22606,3099.8,3099.2,4.02542]
[1738164719327,6.45215,3099.8,3099.2,4.02542]
[1738164719491,6.45215,3099.8,3099.2,0.7988]
[1738164719492,3.22613,3099.7,3099.2,0.7988]
[1738164719698,3.22606,3099.8,3099.3,3.22653]
[1738164720007,3.22614,3099.7,3099.2,0.7988]
[1738164720233,3.22638,3099.5,3098.9,4.01762]
[1738164720553,3.9352048,3099.7,3099.1,3.22666]
[1738164720846,3.22624,3099.6,3099.1,6.45334]
[1738164721053,0.63804797,3099.9,3098.9,0.7907]
[1738164721325,3.22672,3099.2,3098.8,0.383]
[1738164722127,3.22672,3099.2,3098.7,3.22709]
[1738164722843,3.22653,3099.3,3098.8,3.227]
[1738164723052,4.67759487,3099.4,3098.8,3.227]
[1738164723226,7.90410487,3099.4,3098.8,3.227]
[1738164723428,3.22612,3099.7,3099.1,3.22667]
[1738164723733,3.22612,3099.7,3099.2,0.8289]
[1738164724028,4.05537,3099.8,3099.3,3.22649]
[1738164724228,3.22607,3099.8,3099.3,3.22649]
[1738164724429,3.22607,3099.8,3099.2,0.8289]
[1738164724623,3.22624,3099.6,3099.2,0.8289]
[1738164724821,0.84042899,3099.5,3098.9,0.8214]
[1738164725016,3.22663,3099.3,3098.9,0.8214]
[1738164725216,3.22671,3099.2,3098.9,0.8214]
[1738164725596,3.22647,3099.4,3098.9,0.8214]
[1738164726197,3.22674,3099.1,3098.9,0.8214]
[1738164726931,3.227,3098.9,3098.6,0.7939]
[1738164727135,3.22706,3098.8,3098.6,0.7939]
[1738164727335,3.22746,3098.5,3098.3,0.7771]
[1738164727546,3.22722,3098.7,3098.0,3.3321]
[1738164727741,3.22742,3098.5,3098.0,6.94296]
[1738164728040,3.22722,3098.7,3098.1,3.22772]
[1738164728334,3.22722,3098.7,3098.2,35.0]
[1738164728540,3.22726,3098.6,3098.2,35.0]
[1738164729143,3.88264325,3098.8,3098.2,35.0]
[1738164729364,3.22701,3098.9,3098.2,35.0]
[1738164729535,3.22716,3098.7,3098.2,38.22762]
[1738164729842,3.22701,3098.9,3098.2,38.22762]
[1738164730040,3.22679,3099.1,3098.4,0.7841]
[1738164730258,3.22679,3099.1,3098.5,3.22726]
[1738164730537,3.22679,3099.1,3098.4,0.7841]
[1738164730715,3.22679,3099.1,3098.6,35.0]
[1738164730916,3.88292874,3099.1,3098.6,35.0]
[1738164731138,3.22713,3098.8,3098.6,35.0]
[1738164731342,3.22746,3098.5,3098.0,2.555]
[1738164731639,3.22758,3098.3,3098.0,2.555]
[1738164732012,3.22749,3098.4,3098.0,2.555]
[1738164732213,6.45505,3098.4,3098.0,2.555]
[1738164732534,3.22758,3098.3,3098.0,2.555]
[1738164733553,3.22733,3098.6,3098.0,2.555]
[1738164733709,3.22749,3098.4,3098.0,2.555]
[1738164734110,3.22759,3098.3,3098.0,2.555]
[1738164735051,3.22778,3098.1,3098.0,2.555]
[1738164735551,3.22778,3098.1,3097.5,3.22834]
[1738164735723,3.2279,3098.0,3097.5,3.22834]
[1738164735923,3.86056737,3098.5,3097.9,3.22797]
[1738164736123,4.03359,3098.9,3098.1,3.22778]
[1738164736322,3.22722,3098.7,3098.1,3.22778]
[1738164736535,3.22714,3098.8,3098.1,3.22771]
[1738164736741,3.22714,3098.8,3098.2,38.22766]
[1738164736943,3.22714,3098.8,3098.3,3.22755]
[1738164737658,3.22714,3098.8,3098.4,35.0]
[1738164737950,3.22727,3098.6,3098.0,0.7564]
[1738164738154,3.22714,3098.8,3098.2,3.22765]
[1738164738319,3.22717,3098.7,3098.2,3.22765]
[1738164738521,3.22717,3098.7,3098.3,35.0]
[1738164738721,3.22726,3098.6,3098.3,35.0]
[1738164739254,3.22726,3098.6,3098.1,3.22776]
[1738164739717,3.22714,3098.8,3098.2,35.0]
[1738164739919,3.22668,3099.2,3098.3,0.824]
[1738164739920,3.22672,3099.2,3098.3,0.824]
[1738164740242,3.22672,3099.2,3098.7,3.22712]
[1738164740678,3.22703,3098.9,3098.4,0.8044]
[1738164740962,3.22727,3098.6,3098.1,3.22769]
[1738164741125,3.99508,3098.8,3098.2,38.22765]
[1738164741325,3.22716,3098.7,3098.2,0.383]
[1738164741760,3.22731,3098.6,3098.2,0.383]
[1738164741926,0.768,3098.8,3098.2,3.61064]
[1738164742133,3.22717,3098.7,3098.2,3.61064]
[1738164742352,3.22717,3098.7,3098.2,0.383]
[1738164742540,6.4544,3098.7,3098.2,0.383]
[1738164742744,6.45403,3098.9,3098.3,3.22756]
[1738164742929,3.99989,3099.1,3098.4,3.22738]
[1738164743140,3.22659,3099.3,3098.7,3.22708]
[1738164743542,3.22665,3099.2,3098.7,3.22708]
[1738164743750,3.22659,3099.3,3098.7,3.22713]
[1738164743949,3.22659,3099.3,3098.7,6.4542]
[1738164744152,3.88158039,3099.3,3098.7,3.22707]
[1738164744637,0.04033393,3099.2,3098.3,4.01492]
[1738164744940,3.22685,3099.0,3098.4,3.22746]
[1738164745876,3.22685,3099.0,3098.5,3.22728]
[1738164746237,3.22667,3099.2,3098.4,3.22746]
[1738164746455,3.22663,3099.2,3098.6,3.22724]
[1738164746976,0.65499039,3099.3,3098.8,0.7791]
[1738164747136,0.7704,3100.5,3099.4,0.7791]
[1738164747467,3.22598,3099.9,3099.4,0.7791]
[1738164747669,3.22613,3099.7,3099.4,0.7791]
[1738164747855,3.22598,3099.9,3099.4,35.7791]
[1738164748055,3.22575,3100.1,3099.5,3.22632]
[1738164748569,3.22581,3100.0,3099.5,3.22632]
[1738164748950,3.22554,3100.3,3099.6,3.22615]
[1738164749135,0.16739675,3100.9,3099.8,0.7776]
[1738164749335,0.7576,3101.1,3100.3,0.7776]
[1738164749580,3.22505,3100.8,3100.3,0.7776]
[1738164749757,3.22476,3101.0,3100.4,3.22536]
[1738164749935,3.22513,3100.7,3100.3,0.7776]
[1738164750131,3.22563,3100.2,3099.9,1.1598]
[1738164750537,3.2258,3100.0,3099.9,0.383]
[1738164751946,3.22544,3100.4,3099.9,0.383]
[1738164752151,3.2255,3100.3,3100.0,0.8008]
[1738164752380,3.22497,3100.8,3100.0,0.8008]
[1738164752381,3.22501,3100.8,3100.0,0.8008]
[1738164752598,0.64509047,3100.9,3100.0,0.8008]
[1738164752741,3.22528,3100.5,3100.0,4.02659]
[1738164753500,0.64509047,3100.9,3100.2,0.7931]
[1738164753661,3.22418,3101.6,3100.9,3.22485]
[1738164753838,3.22418,3101.6,3101.0,0.82534453]
[1738164754038,3.22418,3101.6,3101.0,0.7931]
[1738164754251,0.0075,3102.3,3101.0,2.7931]
[1738164754252,3.22369,3102.1,3101.0,2.7931]
[1738164754462,3.22365,3102.1,3101.6,4.02761]
[1738164754772,3.95002,3102.1,3101.6,0.8035]
[1738164754981,0.72637,3102.1,3101.6,39.02764]
[1738164755160,7.17371,3102.1,3101.6,35.8035]
[1738164755363,3.22401,3101.8,3101.5,0.383]
[1738164755945,3.22372,3102.0,3101.5,0.383]
[1738164756145,3.22384,3101.9,3101.5,0.383]
[1738164756340,3.22372,3102.0,3101.5,0.383]
[1738164756549,3.22403,3101.8,3101.5,0.383]
[1738164757073,3.22404,3101.7,3101.5,0.383]
[1738164757373,3.22403,3101.8,3101.5,0.383]
[1738164759078,3.22405,3101.7,3101.5,0.383]
[1738164759416,3.22403,3101.8,3101.5,0.383]
[1738164760377,3.22373,3102.0,3101.5,0.383]
[1738164760685,3.22386,3101.9,3101.5,0.383]
[1738164763179,6.44777,3101.9,3101.5,0.383]
[1738164763383,3.22396,3101.8,3101.5,0.383]
[1738164763551,3.22386,3101.9,3101.5,0.383]
[1738164763889,6.44777,3101.9,3101.5,0.383]
[1738164764048,3.22386,3101.9,3101.5,0.383]
[1738164765284,3.22367,3102.1,3101.5,0.383]
[1738164765448,3.22367,3102.1,3101.5,3.60722]
[1738164765646,3.22343,3102.3,3101.7,4.00391]
[1738164766469,3.22359,3102.2,3101.7,0.7799]
[1738164766650,3.2238,3102.0,3101.7,0.7799]
[1738164767073,3.22336,3102.4,3101.7,0.7799]
[1738164767395,3.22336,3102.4,3101.5,0.383]
[1738164767396,3.22318,3102.6,3102.1,0.815]
[1738164767692,3.22331,3102.4,3102.1,35.815]
[1738164768679,6.44635,3102.6,3102.1,0.815]
[1738164768992,3.22325,3102.5,3102.1,0.815]
[1738164770248,3.22293,3102.8,3102.1,0.815]
[1738164770451,3.22273,3103.0,3102.1,0.815]
[1738164770671,3.22273,3103.0,3102.4,3.22329]
[1738164770870,3.22273,3103.0,3102.3,3.22333]
[1738164771087,3.22297,3102.8,3102.1,4.03857]
[1738164771388,0.6434178,3103.1,3102.1,4.03857]
[1738164771389,3.22287,3102.9,3102.1,4.03857]
[1738164771547,3.22287,3102.9,3102.3,3.22339]
[1738164771750,3.22296,3102.8,3102.1,4.03857]
[1738164771985,3.22268,3103.0,3102.1,4.03853]
[1738164772189,3.22289,3102.9,3102.2,3.22343]
[1738164772392,3.22268,3103.0,3102.2,3.22343]
[1738164772557,3.22292,3102.8,3102.2,3.22343]
[1738164773062,3.22289,3102.8,3102.1,0.815]
[1738164773253,3.22315,3102.6,3102.1,0.815]
[1738164773488,3.22315,3102.6,3102.1,4.03856]
[1738164774072,3.22325,3102.5,3102.1,0.815]
[1738164774267,3.22343,3102.3,3102.1,0.815]
[1738164774452,3.22364,3102.1,3101.8,1.1725]
[1738164774859,3.22364,3102.1,3101.8,0.382]
[1738164775072,3.22347,3102.3,3101.8,0.382]
[1738164775454,3.22357,3102.2,3101.8,0.382]
[1738164775656,3.22363,3102.1,3101.8,0.382]
[1738164775885,3.22383,3101.9,3101.8,0.382]
[1738164776595,3.2244,3101.4,3101.2,0.7726]
[1738164776757,3.22447,3101.3,3101.0,0.382]
[1738164776958,3.22434,3101.5,3101.0,0.382]
[1738164777172,3.22436,3101.4,3100.9,3.99746]
[1738164777374,3.22434,3101.5,3100.9,0.7726]
[1738164777375,4.05324,3101.5,3100.9,0.7726]
[1738164777560,7.27758,3101.5,3100.9,0.7726]
[1738164777760,3.22432,3101.5,3100.9,3.9974]
[1738164778393,3.22383,3101.9,3101.0,0.7918]
[1738164778561,3.22393,3101.8,3101.2,3.22445]
[1738164778760,3.22393,3101.8,3101.0,0.7918]
[1738164778761,3.22393,3101.8,3101.3,3.22442]
[1738164779363,3.22386,3101.9,3101.4,0.8171]
[1738164779557,3.22393,3101.8,3101.4,0.8171]
[1738164779875,3.22393,3101.8,3101.1,3.22462]
[1738164779876,3.22404,3101.7,3101.1,0.8171]
[1738164780063,3.22416,3101.6,3101.1,0.8171]
[1738164780708,3.22448,3101.3,3100.8,0.7912]
[1738164781016,3.22427,3101.5,3100.8,1.1732]
[1738164781319,3.22413,3101.7,3101.1,3.22462]
[1738164781605,3.22413,3101.7,3101.1,3.2246]
[1738164781808,3.22413,3101.7,3101.2,3.22454]
[1738164782053,0.64761142,3101.8,3101.5,0.7743]
[1738164782165,3.22348,3102.3,3101.5,0.7743]
[1738164782494,3.22353,3102.2,3101.7,3.22401]
[1738164782695,3.22353,3102.2,3101.8,35.0]
[1738164782894,4.01106,3102.4,3101.8,38.22385]
[1738164783069,0.65455764,3102.6,3101.9,0.84813578]
[1738164783277,0.65455764,3102.6,3102.1,3.22362]
[1738164783503,3.22336,3102.4,3101.9,0.8159]
[1738164783794,3.22272,3103.0,3102.4,3.22329]
[1738164783984,3.22292,3102.8,3102.2,3.22343]
[1738164784381,3.22292,3102.8,3102.3,3.2234]
[1738164784580,3.22292,3102.8,3102.2,3.22343]
[1738164784781,4.62098646,3103.1,3102.0,3.22369]
[1738164784981,3.22291,3102.8,3102.0,6.4473]
[1738164785156,3.22291,3102.8,3102.2,3.22351]
[1738164785360,3.223,3102.7,3102.2,3.22351]
[1738164786161,6.44609,3102.7,3102.0,6.44728]
[1738164786361,3.22282,3102.9,3102.1,0.03223236]
[1738164786599,3.22282,3102.9,3102.4,3.22328]
[1738164786801,3.2229,3102.8,3102.3,3.22335]
[1738164786971,3.22282,3102.9,3102.3,3.22335]
[1738164787177,3.22331,3102.4,3101.9,35.812]
[1738164787358,0.7784,3102.5,3101.9,0.812]
[1738164787698,0.7784,3102.5,3101.5,3.22418]
[1738164787699,3.2236,3102.2,3101.6,3.97867]
[1738164788800,3.2236,3102.2,3101.6,0.7546]
[1738164789009,0.04029687,3102.1,3101.2,39.01675]
[1738164789176,3.22383,3101.9,3101.2,4.01675]
[1738164789506,0.6307224,3102.2,3101.8,4.02183]
[1738164789727,3.22347,3102.3,3101.8,0.7979]
[1738164790413,3.22364,3102.1,3101.8,0.7979]
[1738164790594,3.22347,3102.3,3101.8,4.0218]
[1738164791119,3.22321,3102.5,3101.8,4.0218]
[1738164791313,6.44566,3102.9,3102.2,3.22349]
[1738164791637,3.98859,3103.3,3102.5,3.2232]
[1738164791931,0.2,3104.5,3101.9,3.25602019]
[1738164791932,0.7662,3103.7,3103.1,3.22257]
[1738164792131,3.22194,3103.8,3103.2,0.03222108]
[1738164792272,3.22194,3103.8,3103.2,3.22245]
[1738164792473,3.22194,3103.8,3103.2,3.25467193]
[1738164792828,3.22194,3103.8,3103.2,3.22245]
[1738164793177,6.44388,3103.8,3103.2,3.22245]
[1738164793518,3.22186,3103.8,3103.2,3.22245]
[1738164793723,3.22198,3103.7,3103.2,3.22245]
[1738164793899,3.22186,3103.8,3103.2,6.44485]
[1738164794225,3.22186,3103.8,3103.3,3.22235]
[1738164794385,3.22198,3103.7,3103.2,3.2224]
[1738164794784,0.63484898,3103.9,3103.1,0.384]
[1738164794785,3.22228,3103.4,3103.1,0.384]
[1738164795110,3.22212,3103.6,3103.1,0.384]
[1738164795428,3.22191,3103.8,3103.1,0.384]
[1738164795772,3.22207,3103.6,3103.1,0.384]
[1738164795973,3.22191,3103.8,3103.1,0.384]
[1738164796311,3.22238,3103.3,3103.0,0.7818]
[1738164796975,3.22248,3103.2,3102.8,0.382]
[1738164797203,3.22297,3102.8,3102.4,1.1356]
[1738164797401,3.22298,3102.8,3102.4,1.1356]
[1738164797624,3.22298,3102.8,3102.4,0.382]
[1738164797625,3.2232,3102.5,3102.4,0.382]
[1738164797822,3.2232,3102.5,3102.1,0.7536]
[1738164798097,3.22326,3102.5,3101.8,1.156]
[1738164798306,3.22338,3102.4,3101.9,3.22381]
[1738164798923,3.22322,3102.5,3101.9,3.22381]
[1738164799201,3.22322,3102.5,3102.0,3.2237]
[1738164799823,3.22322,3102.5,3101.9,3.22381]
[1738164800020,3.22322,3102.5,3101.9,3.22376]
[1738164800222,3.2231,3102.6,3102.0,3.22363]
[1738164800444,3.2232,3102.5,3101.9,3.22376]
[1738164801055,3.2232,3102.5,3102.0,3.22371]
[1738164801202,3.22268,3103.1,3102.4,3.22323]
[1738164801409,3.2223,3103.4,3102.6,3.22301]
[1738164801601,3.22251,3103.2,3102.6,3.22301]
[1738164801842,3.22251,3103.2,3102.6,6.44603]
[1738164802157,3.22251,3103.2,3102.6,3.22301]
[1738164803265,3.22288,3102.9,3102.5,1.2136]
[1738164803670,3.22242,3103.3,3102.6,3.25525833]
[1738164803978,3.22242,3103.3,3102.8,3.22288]
[1738164804417,3.22242,3103.3,3102.6,3.22303]
[1738164804618,3.22265,3103.1,3102.6,3.22303]
[1738164804857,6.44531,3103.1,3102.6,3.22303]
[1738164805280,3.22291,3102.8,3102.5,1.2136]
[1738164805575,3.22237,3103.3,3102.2,0.8077]
[1738164805872,0.8112,3103.4,3102.2,1.1907]
[1738164805873,3.22299,3102.7,3102.2,1.1907]
[1738164806084,3.22258,3103.1,3102.2,1.1907]
[1738164806377,3.22249,3103.2,3102.2,1.1907]
[1738164806378,3.22286,3102.9,3102.3,3.22331]
[1738164806539,3.22286,3102.9,3102.4,3.2233]
[1738164807035,3.22286,3102.9,3102.2,4.41415]
[1738164807036,3.22286,3102.9,3102.2,4.41412]
[1738164807241,3.2231,3102.6,3102.3,0.382]
[1738164807961,3.22323,3102.5,3102.3,0.382]
[1738164808121,3.22308,3102.7,3102.3,0.382]
[1738164808557,3.22311,3102.6,3102.3,0.382]
[1738164808866,3.22308,3102.7,3102.3,0.382]
[1738164809361,3.22331,3102.4,3102.0,0.7876]
[1738164809668,3.22331,3102.4,3101.7,3.22396]
[1738164809669,3.2236,3102.2,3101.7,3.60697]
[1738164810063,3.2236,3102.2,3101.7,0.383]
[1738164810217,3.22377,3102.0,3101.7,0.383]
[1738164810419,3.2236,3102.2,3101.7,0.383]
[1738164810632,3.22362,3102.1,3101.7,0.383]
[1738164811257,3.2236,3102.2,3101.7,0.383]
[1738164811426,3.22362,3102.1,3101.7,0.383]
[1738164811628,3.2236,3102.2,3101.7,0.383]
[1738164812191,6.44721,3102.2,3101.7,0.383]
[1738164812657,3.22362,3102.1,3101.7,0.383]
[1738164813680,3.2236,3102.2,3101.8,35.0]
[1738164813862,6.44719,3102.2,3101.7,0.383]
[1738164814361,6.44719,3102.2,3101.7,35.383]
[1738164814673,3.22359,3102.2,3101.7,35.383]
[1738164814985,3.22293,3102.8,3102.2,3.22346]
[1738164815325,3.22307,3102.7,3102.2,3.22346]
[1738164815535,3.22307,3102.7,3102.3,35.0]
[1738164817463,3.22348,3102.3,3101.8,0.7671]
[1738164817628,0.6445684,3103.1,3101.8,0.7671]
[1738164817629,3.22289,3102.8,3101.8,0.7671]
[1738164817827,3.22411,3101.7,3101.2,3.98646]
[1738164818033,3.22413,3101.7,3101.2,1.144]
[1738164818227,4.01767,3102.1,3101.2,1.144]
[1738164818474,4.00181,3102.4,3101.3,4.012691]
[1738164818682,3.22336,3102.4,3101.8,3.22387]
[1738164818833,3.22347,3102.3,3101.8,3.22387]
[1738164819029,0.7785,3102.8,3101.8,3.22383]
[1738164819030,0.64347209,3102.6,3101.8,3.22383]
[1738164819232,0.64347209,3102.6,3101.5,3.22416]
[1738164819471,3.22355,3102.2,3101.6,3.22413]
[1738164819818,6.44714,3102.2,3101.6,3.22413]
[1738164819929,3.22373,3102.0,3101.4,35.756]
[1738164820127,3.2242,3101.6,3101.4,35.0]
[1738164820445,3.22404,3101.7,3101.1,0.814]
[1738164820633,3.22428,3101.5,3101.1,0.814]
[1738164820988,3.22428,3101.5,3101.1,35.814]
[1738164821489,3.22437,3101.4,3101.1,35.814]
[1738164821683,3.22445,3101.3,3100.8,0.7854]
[1738164821848,3.22475,3101.1,3100.5,0.7854]
[1738164822052,3.22455,3101.2,3100.6,35.0]
[1738164822232,3.22455,3101.2,3100.7,3.22507]
[1738164822590,3.22474,3101.1,3100.6,35.0]
[1738164822730,3.22453,3101.3,3100.6,38.22509]
[1738164823051,3.22447,3101.3,3100.8,3.22495]
[1738164823579,3.22456,3101.2,3100.6,38.22513]
[1738164823737,3.22456,3101.2,3100.6,3.22513]
[1738164823943,3.22477,3101.0,3100.5,0.7854]
[1738164824548,3.22477,3101.0,3100.5,4.01065]
[1738164824747,3.22456,3101.2,3100.6,3.22516]
[1738164825234,0.04031012,3101.1,3100.2,38.22559]
[1738164825431,3.22506,3100.8,3100.2,39.3946]
[1738164825629,3.22494,3100.9,3100.2,39.3946]
[1738164825830,3.22494,3100.9,3100.3,0.03225156]
[1738164826464,3.22499,3100.8,3100.2,39.3946]
[1738164826675,3.22494,3100.9,3100.3,3.2254]
[1738164826882,3.22494,3100.9,3100.4,3.22538]
[1738164827083,3.22451,3101.3,3100.8,3.22494]
[1738164827280,3.22461,3101.2,3100.8,0.8227]
[1738164827529,3.22498,3100.8,3100.4,0.8227]
[1738164827730,3.22498,3100.8,3100.4,0.382]
[1738164827885,4.0518,3101.0,3100.4,0.382]
[1738164828079,3.22457,3101.2,3100.5,3.22521]
[1738164828313,3.22457,3101.2,3100.6,3.22512]
[1738164828513,0.7811,3101.3,3100.4,0.382]
[1738164828514,3.22492,3100.9,3100.4,0.382]
[1738164828928,3.22492,3100.9,3100.4,3.60732]
[1738164829094,3.22466,3101.1,3100.5,3.2252]
[1738164829292,3.2249,3100.9,3100.4,0.382]
[1738164829541,3.22455,3101.2,3100.1,4.04833]
[1738164829696,0.7811,3101.3,3100.2,3.60756]
[1738164829891,3.22498,3100.8,3100.2,3.60756]
[1738164830492,3.2251,3100.7,3100.2,0.382]
[1738164830691,3.22498,3100.8,3100.2,0.382]
[1738164830990,3.2251,3100.7,3100.2,0.382]
[1738164831213,3.2251,3100.7,3100.2,3.382]
[1738164831438,3.22498,3100.8,3100.2,6.60753]
[1738164831638,3.22498,3100.8,3100.3,3.22548]
[1738164832038,3.22498,3100.8,3100.2,41.60756]
[1738164832313,3.22462,3101.2,3100.2,38.382]
[1738164832508,3.22476,3101.0,3100.5,3.22522]
[1738164832746,3.22462,3101.2,3100.6,4.04502]
[1738164832950,3.22466,3101.1,3100.6,4.04502]
[1738164833154,0.65788539,3101.4,3100.7,38.22501]
[1738164833348,3.22461,3101.2,3100.7,38.22501]
[1738164833730,3.22473,3101.1,3100.7,35.0]
[1738164833924,3.22473,3101.1,3100.6,0.8199]
[1738164834451,3.22473,3101.1,3100.6,35.8199]
[1738164835153,3.22473,3101.1,3100.6,0.8199]
[1738164835518,3.22473,3101.1,3100.6,39.04504]
[1738164836352,0.65788539,3101.4,3100.6,35.8199]
[1738164836518,3.22464,3101.2,3100.7,3.22501]
[1738164837018,3.22464,3101.2,3100.7,6.45002]
[1738164837362,3.22464,3101.2,3100.7,3.22501]
[1738164837541,3.22464,3101.2,3100.7,6.45002]
[1738164837730,3.88231539,3101.4,3100.7,3.22501]
[1738164837926,3.22437,3101.4,3100.8,3.22495]
[1738164838360,3.22437,3101.4,3100.8,6.44981]
[1738164838662,3.22437,3101.4,3100.9,3.22484]
[1738164838860,3.22424,3101.5,3100.6,4.04507]
[1738164839059,3.22464,3101.2,3100.6,4.04507]
[1738164839862,3.22477,3101.0,3100.6,0.8199]
[1738164840237,3.22469,3101.1,3100.6,4.04507]
[1738164841242,3.22469,3101.1,3100.6,0.8199]
[1738164841749,3.22483,3101.0,3100.6,0.8199]
[1738164841952,0.0075,3101.4,3100.3,35.7558]
[1738164842130,0.0075,3101.4,3100.4,0.382]
[1738164842131,3.22494,3100.9,3100.4,0.382]
[1738164842332,3.22498,3100.8,3100.4,0.382]
[1738164842753,3.22494,3100.9,3100.0,3.22575]
[1738164842754,0.7607,3100.9,3100.0,0.7558]
[1738164843066,3.22544,3100.4,3100.0,0.7558]
[1738164843270,3.2257,3100.1,3099.9,0.382]
[1738164843455,3.22561,3100.2,3099.9,0.382]
[1738164843644,6.45127,3100.2,3099.9,0.382]
[1738164843832,3.22561,3100.2,3099.9,0.382]
[1738164844028,3.22601,3099.8,3099.7,2.553]
[1738164844546,3.85946014,3100.1,3099.7,2.553]
[1738164844747,3.22601,3099.8,3099.7,2.553]
[1738164844946,3.22598,3099.9,3099.7,2.553]
[1738164845444,3.22535,3100.5,3099.9,3.22584]
[1738164845644,3.22535,3100.5,3099.8,0.8164]
[1738164845645,3.22535,3100.5,3100.0,3.22578]
[1738164846050,3.22512,3100.7,3100.1,38.25792508]
[1738164846373,6.22458,3101.2,3100.1,38.25792508]
[1738164846374,0.792,3101.2,3100.5,3.22523]
[1738164846546,0.8282,3101.6,3100.5,3.22523]
[1738164846746,3.22461,3101.2,3100.6,3.22517]
[1738164846937,0.8282,3101.6,3100.6,3.22517]
[1738164846938,0.8282,3101.6,3101.1,3.2246]
[1738164847273,3.22428,3101.5,3100.9,3.98544]
[1738164847478,0.8276,3101.4,3100.8,0.382]
[1738164847658,6.44919,3101.2,3100.8,0.382]
[1738164847865,3.22456,3101.2,3100.8,0.382]
[1738164848350,3.22478,3101.0,3100.8,0.382]
[1738164848548,3.22478,3101.0,3100.5,0.382]
[1738164848549,3.22497,3100.8,3100.5,0.382]
[1738164848937,3.22478,3101.0,3100.5,0.382]
[1738164849939,6.44925,3101.2,3100.5,3.60727]
[1738164850160,3.22445,3101.3,3100.6,0.7656]
[1738164850672,3.22509,3100.7,3100.5,0.382]
[1738164850872,3.22479,3101.0,3100.5,0.382]
[1738164851042,6.44963,3101.0,3100.5,0.382]
[1738164851240,3.22479,3101.0,3100.5,0.382]
[1738164851633,3.22458,3101.2,3100.6,3.22509]
[1738164851874,3.22458,3101.2,3100.6,6.45018]
[1738164852172,3.22458,3101.2,3100.5,0.382]
[1738164852474,3.22479,3101.0,3100.5,3.60728]
[1738164852673,6.44922,3101.2,3100.5,6.83248]
[1738164852877,3.22458,3101.2,3100.5,3.6072]
[1738164853079,4.70394514,3101.4,3100.8,3.22496]
[1738164853293,4.05199,3101.4,3100.7,3.22497]
[1738164853499,3.22439,3101.4,3100.8,3.22488]
[1738164854271,3.22446,3101.3,3100.8,3.22488]
[1738164855710,3.22446,3101.3,3100.6,4.05008]
[1738164856005,3.22439,3101.4,3100.7,3.22501]
[1738164856217,3.2242,3101.6,3101.0,3.22476]
[1738164856403,4.01808,3102.0,3101.2,0.7703]
[1738164856573,3.22347,3102.3,3101.8,3.22392]
[1738164856906,3.22312,3102.6,3102.0,3.22371]
[1738164857207,3.22289,3102.8,3102.1,3.60861]
[1738164857416,3.22289,3102.8,3102.2,3.22346]
[1738164857797,3.22306,3102.7,3102.1,3.60861]
[1738164857982,3.22289,3102.8,3102.2,3.22351]
[1738164858614,3.22289,3102.8,3102.1,3.60861]
[1738164858775,3.22338,3102.4,3102.1,0.385]
[1738164858978,0.65439975,3102.9,3102.1,0.385]
[1738164859175,3.22291,3102.8,3102.2,3.22343]
[1738164859782,3.2232,3102.5,3102.1,35.385]
[1738164860114,3.2232,3102.5,3102.1,0.385]
[1738164861112,3.22309,3102.7,3102.1,3.60861]
[1738164861424,3.22307,3102.7,3102.1,3.60861]